fUST/lending_fUST_20250730
["ID","MTS","AMOUNT","RATE_DAILY","PERIOD"]
[376052681,1753841443948,-3000.0,0.0002114,2]
[376052683,1753841443957,-200.0,0.00021141,15]
[376052685,1753841443969,-200.0,0.00021141,15]
[376052687,1753841443979,-200.0,0.00021141,15]
[376052689,1753841443989,-200.0,0.00021141,15]
[376052691,1753841443998,-320.0,0.00021141,15]
[376052693,1753841444007,-3000.0,0.0002115,2]
[376052695,1753841444016,-3000.0,0.0002116,2]
[376052697,1753841444025,-3000.0,0.0002117,2]
[376052699,1753841444034,-3000.0,0.0002118,2]
[376052701,1753841444043,-3000.0,0.0002119,2]
[376052703,1753841444053,-3000.0,0.000212,2]
[376052705,1753841444063,-3000.0,0.0002121,2]
[376052707,1753841444072,-151.0,0.00021219,4]
[376052709,1753841444081,-3000.0,0.0002122,2]
[376052711,1753841444090,-3000.0,0.0002123,2]
[376052713,1753841444099,-3000.0,0.0002124,2]
[376052715,1753841444110,-201.91791003,0.00021244,3]
[376052716,1753841444119,-3000.0,0.0002125,2]
[376052718,1753841444129,-12639.5777639,0.0002125,3]
[376052720,1753841444138,-161.09146281,0.0002125,3]
[376052723,1753841444148,-237.69986304,0.0002125,2]
[376052725,1753841444157,-3000.0,0.0002126,2]
[376052727,1753841444167,-970.0,0.00021261,2]
[376052728,1753841444176,-407.0,0.00021261,2]
[376052730,1753841444185,-425.782,0.00021261,2]
[376052732,1753841444194,-3000.0,0.0002127,2]
[376052734,1753841444204,-3000.0,0.0002128,2]
[376052737,1753841444215,-3000.0,0.0002129,2]
[376052739,1753841444225,-179.73040439,0.00021295,2]
[376052741,1753841444234,-3000.0,0.000213,2]
[376052743,1753841444244,-3000.0,0.0002131,2]
[376052745,1753841444253,-3000.0,0.0002132,2]
[376052746,1753841444263,-3000.0,0.0002133,2]
[376052749,1753841444272,-3000.0,0.0002134,2]
[376052751,1753841444281,-737.4,0.00021342,2]
[376052753,1753841444291,-1944.75,0.00021343,2]
[376052754,1753841444301,-1158.89,0.00021343,2]
[376052756,1753841444310,-460.0,0.00021343,2]
[376052759,1753841444320,-460.0,0.00021343,2]
[376052760,1753841444330,-928.47,0.00021343,2]
[376052762,1753841444339,-525.3,0.00021343,2]
[376052764,1753841444349,-1052.67,0.00021343,2]
[376052766,1753841444358,-606.80816287,0.00021343,2]
[376052768,1753841444368,-460.0,0.00021343,2]
[376052770,1753841444377,-460.0,0.00021343,2]
[376052772,1753841444386,-460.0,0.00021343,2]
[376052774,1753841444396,-460.0,0.00021343,2]
[376052776,1753841444405,-803.0,0.00021344,2]
[376052778,1753841444414,-372.81210753,0.00021344,2]
[376052780,1753841444424,-570.52274438,0.00021344,2]
[376052782,1753841444433,-460.0,0.00021344,2]
[376052784,1753841444442,-460.0,0.00021344,2]
[376052787,1753841444451,-460.0,0.00021344,2]
[376052789,1753841444460,-460.0,0.00021344,2]
[376052791,1753841444469,-460.0,0.00021344,2]
[376052793,1753841444479,-565.92,0.00021344,2]
[376052795,1753841444489,-1004.45,0.00021344,2]
[376052797,1753841444498,-853.44,0.00021344,2]
[376052799,1753841444507,-2479.42,0.00021346,2]
[376052801,1753841444517,-745.78,0.00021346,2]
[376052803,1753841444526,-1024.31,0.00021346,2]
[376052805,1753841444535,-1091.91,0.00021346,2]
[376052807,1753841444545,-652.83,0.00021346,2]
[376052809,1753841444555,-460.0,0.00021347,2]
[376052811,1753841444568,-3000.0,0.0002135,2]
[376052813,1753841444577,-508.431,0.00021353,2]
[376052815,1753841444586,-500.0,0.00021356,2]
[376052817,1753841444596,-154.91865829,0.00021356,2]
[376052819,1753841444606,-3000.0,0.0002136,2]
[376052821,1753841444615,-3000.0,0.0002137,2]
[376052823,1753841444624,-3000.0,0.0002138,2]
[376052825,1753841444635,-3000.0,0.0002139,2]
[376052827,1753841444644,-3000.0,0.000214,2]
[376052829,1753841444654,-3000.0,0.0002141,2]
[376052831,1753841444663,-3000.0,0.0002142,2]
[376052833,1753841444672,-151.0,0.00021428,4]
[376052835,1753841444682,-3000.0,0.0002143,2]
[376052837,1753841444691,-3418.484885,0.0002144,2]
[376052838,1753841444700,-2146.0,0.00021512,2]
[376052841,1753841444710,-1000.0,0.00021517,2]
[376052843,1753841444719,-356.50087766,0.00021529,2]
[376052845,1753841444728,-341.75916746,0.00021531,2]
[376052847,1753841444737,-160.0,0.00021579,3]
[376052849,1753841444747,-737.4,0.00021616,2]
[376052851,1753841444757,-1944.75,0.00021617,2]
[376052853,1753841444766,-1158.89,0.00021617,2]
[376052855,1753841444776,-164.24501137,0.00021617,2]
[376052857,1753841444785,-460.0,0.00021617,2]
[376052859,1753841444801,-928.47,0.00021617,2]
[376052862,1753841444815,-525.3,0.00021617,2]
[376052864,1753841444825,-1052.67,0.00021617,2]
[376052866,1753841444835,-460.0,0.00021617,2]
[376052868,1753841444844,-460.0,0.00021617,2]
[376052870,1753841444855,-460.0,0.00021617,2]
[376052872,1753841444865,-460.0,0.00021617,2]
[376052874,1753841444875,-803.0,0.00021618,2]
[376052876,1753841444884,-460.0,0.00021618,2]
[376052878,1753841444894,-460.0,0.00021618,2]
[376052887,1753841444967,-460.0,0.00021618,2]
[376052889,1753841444976,-460.0,0.00021618,2]
[376052891,1753841444986,-460.0,0.00021618,2]
[376052893,1753841444996,-565.92,0.00021618,2]
[376052895,1753841445006,-1004.45,0.00021618,2]
[376052897,1753841445016,-853.44,0.00021618,2]
[376052899,1753841445025,-2479.42,0.0002162,2]
[376052901,1753841445036,-745.78,0.0002162,2]
[376052903,1753841445046,-1024.31,0.0002162,2]
[376052905,1753841445055,-1091.91,0.0002162,2]
[376052907,1753841445065,-652.83,0.0002162,2]
[376052909,1753841445074,-460.0,0.00021621,2]
[376052911,1753841445084,-151.0,0.00021636,4]
[376052913,1753841445093,-460.0,0.00021658,2]
[376052915,1753841445102,-430.1392862,0.0002169,2]
[376052917,1753841445112,-430.1392862,0.0002169,2]
[376052919,1753841445123,-215.157139,0.00021739,2]
[376052921,1753841445134,-166.37951,0.00021739,2]
[376052923,1753841445144,-166.37951,0.00021739,2]
[376052925,1753841445154,-151.0,0.00021739,2]
[376052927,1753841445165,-179.732417,0.00021776,2]
[376052929,1753841445174,-182.96,0.000218,7]
[376052931,1753841445184,-151.0,0.00021845,4]
[376052933,1753841445194,-737.4,0.0002189,2]
[376052935,1753841445204,-1944.75,0.00021891,2]
[376052937,1753841445213,-1158.89,0.00021891,2]
[376052939,1753841445223,-460.0,0.00021891,2]
[376052941,1753841445232,-928.47,0.00021891,2]
[376052943,1753841445241,-525.3,0.00021891,2]
[376052945,1753841445251,-1052.67,0.00021891,2]
[376052947,1753841445260,-497.85200539,0.00021891,2]
[376052949,1753841445270,-460.0,0.00021891,2]
[376052951,1753841445281,-460.0,0.00021891,2]
[376052953,1753841445291,-460.0,0.00021891,2]
[376052955,1753841445300,-803.0,0.00021892,2]
[376052957,1753841445311,-460.0,0.00021892,2]
[376052959,1753841445321,-523.09681226,0.00021892,2]
[376052961,1753841445332,-460.0,0.00021892,2]
[376052963,1753841445341,-460.0,0.00021892,2]
[376052965,1753841445351,-460.0,0.00021892,2]
[376052967,1753841445360,-565.92,0.00021892,2]
[376052969,1753841445369,-1004.45,0.00021892,2]
[376052971,1753841445379,-853.44,0.00021892,2]
[376052973,1753841445388,-2479.42,0.00021894,2]
[376052975,1753841445399,-745.78,0.00021894,2]
[376052977,1753841445408,-1024.31,0.00021894,2]
[376052979,1753841445418,-1091.91,0.00021894,2]
[376052981,1753841445431,-158.480114,0.00021894,2]
[376052983,1753841445440,-652.83,0.00021894,2]
[376052985,1753841445449,-460.0,0.00021895,2]
[376052987,1753841445460,-59440.1070342,0.00021909,2]
[376052989,1753841445469,-151.0,0.00021909,2]
[376052991,1753841445479,-152.991824,0.00021909,2]
[376052993,1753841445489,-151.0,0.00021909,2]
[376052995,1753841445499,-152.046712,0.00021909,2]
[376052997,1753841445508,-151.0,0.00021909,2]
[376052999,1753841445518,-151.0,0.00021909,2]
[376053001,1753841445528,-151.0,0.00021909,2]
[376053003,1753841445538,-153.442753,0.00021909,2]
[376053005,1753841445548,-151.0,0.00021909,2]
[376053007,1753841445560,-151.0,0.00021909,2]
[376053009,1753841445570,-151.0,0.00021909,2]
[376053011,1753841445580,-182.0,0.00021911,2]
[376053013,1753841445590,-500.0,0.00021917,2]
[376053015,1753841445602,-500.0,0.00021917,2]
[376053017,1753841445612,-500.0,0.00021917,2]
[376053019,1753841445622,-500.0,0.00021917,2]
[376053021,1753841445632,-500.0,0.00021917,2]
[376053023,1753841445643,-500.0,0.00021917,2]
[376053025,1753841445654,-504.00606419,0.00021917,2]
[376053027,1753841445664,-168.56846844,0.00021918,2]
[376053029,1753841445675,-182.0,0.0002192,2]
[376053031,1753841445685,-151.0,0.00022,7]
[376053034,1753841445694,-151.0,0.00022,7]
[376053035,1753841445704,-151.0,0.00022,7]
[376053037,1753841445713,-346.223673,0.00022,7]
[376053039,1753841445723,-346.223673,0.00022,7]
[376053041,1753841445733,-4088.84,0.00022,2]
[376053043,1753841445742,-163.0,0.00022,2]
[376053045,1753841445751,-151.0,0.00022053,5]
[376053047,1753841445761,-1513.43225405,0.00022065,2]
[376053049,1753841445771,-160.0,0.00022157,4]
[376053051,1753841445780,-737.4,0.00022164,2]
[376053053,1753841445789,-1944.75,0.00022165,2]
[376053055,1753841445799,-1158.89,0.00022165,2]
[376053057,1753841445809,-460.0,0.00022165,2]
[376053059,1753841445819,-928.47,0.00022165,2]
[376053061,1753841445828,-525.3,0.00022165,2]
[376053063,1753841445838,-1052.67,0.00022165,2]
[376053065,1753841445847,-460.0,0.00022165,2]
[376053067,1753841445856,-460.0,0.00022165,2]
[376053069,1753841445866,-603.96612923,0.00022165,2]
[376053071,1753841445876,-803.0,0.00022166,2]
[376053073,1753841445889,-460.0,0.00022166,2]
[376053075,1753841445900,-460.0,0.00022166,2]
[376053077,1753841445910,-460.0,0.00022166,2]
[376053079,1753841445920,-460.0,0.00022166,2]
[376053081,1753841445929,-78.85687994,0.00022166,2]
[376053097,1753841446067,-487.06312006,0.00022166,2]
[376053099,1753841446078,-1004.45,0.00022166,2]
[376053101,1753841446088,-853.44,0.00022166,2]
[376053103,1753841446098,-2479.42,0.00022168,2]
[376053105,1753841446109,-745.78,0.00022168,2]
[376053107,1753841446121,-1024.31,0.00022168,2]
[376053109,1753841446130,-1091.91,0.00022168,2]
[376053111,1753841446140,-652.83,0.00022168,2]
[376053113,1753841446150,-460.0,0.00022169,2]
[376053115,1753841446159,-560.0,0.00022206,2]
[376053117,1753841446170,-168.56846844,0.00022219,2]
[376053119,1753841446179,-151.0,0.00022262,5]
[376053121,1753841446190,-356.50087766,0.0002235,2]
[376053123,1753841446200,-262.07483135,0.0002237,2]
[376053125,1753841446211,-150.0,0.000224,2]
[376053127,1753841446221,-2000.0,0.000224,2]
[376053129,1753841446231,-587.0,0.0002243,2]
[376053131,1753841446241,-737.4,0.00022438,2]
[376053133,1753841446250,-1944.75,0.00022439,2]
[376053135,1753841446261,-1158.89,0.00022439,2]
[376053137,1753841446271,-460.0,0.00022439,2]
[376053139,1753841446281,-928.47,0.00022439,2]
[376053141,1753841446291,-525.3,0.00022439,2]
[376053143,1753841446302,-1052.67,0.00022439,2]
[376053145,1753841446312,-460.0,0.00022439,2]
[376053147,1753841446323,-460.0,0.00022439,2]
[376053149,1753841446333,-803.0,0.0002244,2]
[376053152,1753841446344,-460.0,0.0002244,2]
[376053154,1753841446354,-460.0,0.0002244,2]
[376053155,1753841446364,-460.0,0.0002244,2]
[376053158,1753841446374,-460.0,0.0002244,2]
[376053159,1753841446384,-565.92,0.0002244,2]
[376053161,1753841446394,-1004.45,0.0002244,2]
[376053163,1753841446404,-853.44,0.0002244,2]
[376053166,1753841446414,-2479.42,0.00022442,2]
[376053168,1753841446423,-745.78,0.00022442,2]
[376053170,1753841446433,-1024.31,0.00022442,2]
[376053172,1753841446443,-1091.91,0.00022442,2]
[376053174,1753841446453,-652.83,0.00022442,2]
[376053176,1753841446463,-460.0,0.00022443,2]
[376053177,1753841446473,-88316.63502458,0.0002245,2]
[376053194,1753841446634,-797.97,0.00019151,2]
[376053196,1753841446646,-797.97,0.00019425,2]
[376053198,1753841446655,-797.97,0.00019699,2]
[376053200,1753841446665,-797.97,0.00019973,2]
[376053202,1753841446676,-797.97,0.00020247,2]
[376053204,1753841446686,-797.97,0.00020521,2]
[376053206,1753841446696,-797.97,0.00020795,2]
[376053208,1753841446706,-1753.26601783,0.0002245,2]
[376053210,1753841446718,-7990.10637397,0.0002245,2]
[376053211,1753841446739,-281.59146772,0.00019698,2]
[376053212,1753841446749,-237.88853224,0.00020522,2]
[376053213,1753841446762,-107.09227787,0.00020522,2]
[376053214,1753841446772,-182.45413381,0.0002245,2]
[376053219,1753841447009,-771.4533225,0.00021069,2]
[376053221,1753841447022,-26.5166775,0.00021069,2]
[376053223,1753841447033,-797.97,0.00021343,2]
[376053225,1753841447043,-315.51486278,0.00021617,2]
[376053429,1753841476345,530.51585721,0.00018778,2]
[376053431,1753841967103,-300.0,0.00018875,2]
[376053432,1753841967124,-535.11303983,0.00018876,2]
[376053433,1753841967146,-460.0,0.00018876,2]
[376053434,1753841967167,-500.0,0.00018876,2]
[376053435,1753841967187,-399.88696017,0.00018876,2]
[376053436,1753841976884,200.0,0.00026,120]
[376053437,1753841983444,1000.0,0.00018187,2]
[376053438,1753842003131,3982.57557417,0.00018511,2]
[376053440,1753842059870,200.0,0.00026,120]
[376053441,1753842071428,200.0,0.00026,120]
[376053442,1753842080844,200.0,0.00026,120]
[376053443,1753842086196,200.0,0.00026,120]
[376053444,1753842086286,1855.6416062,0.0001879,2]
[376053445,1753842092560,230.75147267,0.00026,120]
[376053447,1753842150192,313.865331,0.00013699,2]
[376053448,1753842178251,7247.9344815,0.00018113,2]
[376053464,1753842492229,5578.56657046,0.00026036,120]
[376053468,1753842521897,155.14402114,0.00026042,120]
[376053472,1753842566729,305.3061339,0.00018097,2]
[376053527,1753842632454,-300.0,0.00018875,2]
[376053530,1753842632465,-172.0,0.00018875,2]
[376053534,1753842632477,-460.0,0.00018875,2]
[376053537,1753842632486,-577.42093323,0.00018876,2]
[376053540,1753842632496,-550.92242773,0.00018876,2]
[376053542,1753842632506,-151.42417774,0.00018876,2]
[376053544,1753842632516,-231.78280721,0.00018876,2]
[376053546,1753842632526,-460.0,0.00018876,2]
[376053549,1753842632537,-460.0,0.00018876,2]
[376053551,1753842632548,-460.0,0.00018876,2]
[376053553,1753842632562,-460.0,0.00018876,2]
[376053555,1753842632572,-460.0,0.00018876,2]
[376053557,1753842632583,-460.0,0.00018876,2]
[376053560,1753842632594,-460.0,0.00018876,2]
[376053562,1753842632604,-460.0,0.00018876,2]
[376053564,1753842632615,-460.0,0.00018876,2]
[376053566,1753842632626,-460.0,0.00018876,2]
[376053568,1753842632637,-500.0,0.00018876,2]
[376053570,1753842632648,-460.0,0.00018876,2]
[376053572,1753842632658,-460.0,0.00018876,2]
[376053574,1753842632668,-460.0,0.00018876,2]
[376053577,1753842632679,-460.0,0.00018876,2]
[376053579,1753842632689,-460.0,0.00018876,2]
[376053581,1753842632700,-460.0,0.00018876,2]
[376053583,1753842632711,-460.0,0.00018876,2]
[376053585,1753842632725,-460.0,0.00018876,2]
[376053587,1753842632736,-1414.14,0.00018876,2]
[376053589,1753842632748,-460.0,0.00018876,2]
[376053591,1753842632759,-460.0,0.00018876,2]
[376053593,1753842632770,-460.0,0.00018876,2]
[376053595,1753842632782,-572.70608313,0.00018876,2]
[376053598,1753842632794,-460.0,0.00018876,2]
[376053600,1753842632805,-411.22269329,0.00018876,2]
[376053602,1753842632816,-468.29253804,0.00018876,2]
[376053604,1753842632827,-579.97,0.00018876,2]
[376053606,1753842632838,-967.51,0.00018876,2]
[376053608,1753842632850,-477.04561844,0.00018876,2]
[376053610,1753842632861,-460.0,0.00018876,2]
[376053612,1753842632871,-624.09,0.00018876,2]
[376053614,1753842632883,-460.0,0.00018876,2]
[376053616,1753842632894,-460.0,0.00018876,2]
[376053619,1753842632905,-460.0,0.00018876,2]
[376053621,1753842632916,-460.0,0.00018876,2]
[376053623,1753842632929,-460.0,0.00018876,2]
[376053625,1753842632939,-460.0,0.00018876,2]
[376053627,1753842632951,-915.09,0.00018876,2]
[376053629,1753842632962,-460.0,0.00018876,2]
[376053631,1753842632975,-460.0,0.00018876,2]
[376053633,1753842632988,-378.92356453,0.00018876,2]
[376053636,1753842633003,-81.07643547,0.00018876,2]
[376053638,1753842633015,-215.46730049,0.00018876,2]
[376053868,1753842638694,-244.53269951,0.00018876,2]
[376053869,1753842638704,-460.0,0.00018876,2]
[376053870,1753842638713,-460.0,0.00018876,2]
[376053871,1753842638723,-460.0,0.00018876,2]
[376053872,1753842638733,-460.0,0.00018876,2]
[376053873,1753842638743,-472.21368408,0.00018876,2]
[376053874,1753842638753,-460.0,0.00018876,2]
[376053875,1753842638762,-460.0,0.00018876,2]
[376053876,1753842638771,-830.08,0.00018877,2]
[376053877,1753842638781,-3295.0,0.00018877,2]
[376053878,1753842638790,-647.91,0.00018877,2]
[376053879,1753842638800,-460.0,0.00018878,2]
[376053880,1753842638809,-601.67878195,0.00018878,2]
[376053881,1753842638818,-1367.55,0.00018878,2]
[376053882,1753842638828,-1343.38,0.00018879,2]
[376053883,1753842638837,-763.2,0.00018879,2]
[376053884,1753842638847,-582.95,0.00018879,2]
[376053885,1753842638856,-558.22,0.00018879,2]
[376053886,1753842638865,-449.3,0.00018879,2]
[376053887,1753842638875,-663.55,0.00018879,2]
[376053888,1753842638884,-398.73351207,0.00018879,2]
[376053889,1753842638893,-460.0,0.0001915,2]
[376053890,1753842638902,-460.0,0.0001915,2]
[376053891,1753842638912,-460.0,0.0001915,2]
[376053892,1753842638922,-460.0,0.0001915,2]
[376053893,1753842638934,-460.0,0.0001915,2]
[376053894,1753842638944,-460.0,0.0001915,2]
[376053895,1753842638953,-460.0,0.0001915,2]
[376053896,1753842638963,-460.0,0.0001915,2]
[376053897,1753842638973,-460.0,0.0001915,2]
[376053898,1753842638984,-1414.14,0.0001915,2]
[376053899,1753842638994,-460.0,0.0001915,2]
[376053900,1753842639004,-460.0,0.0001915,2]
[376053901,1753842639013,-460.0,0.0001915,2]
[376053902,1753842639022,-579.97,0.0001915,2]
[376053903,1753842639032,-967.51,0.0001915,2]
[376053904,1753842639041,-624.09,0.0001915,2]
[376053905,1753842639050,-460.0,0.0001915,2]
[376053906,1753842639059,-553.54312669,0.0001915,2]
[376053907,1753842639069,-460.0,0.0001915,2]
[376053908,1753842639078,-460.0,0.0001915,2]
[376053909,1753842639087,-482.10704251,0.0001915,2]
[376053910,1753842639097,-460.0,0.0001915,2]
[376053911,1753842639107,-915.09,0.0001915,2]
[376053912,1753842639116,-460.0,0.0001915,2]
[376053913,1753842639125,-460.0,0.0001915,2]
[376053914,1753842639134,-460.0,0.0001915,2]
[376053915,1753842639143,-460.0,0.0001915,2]
[376053916,1753842639152,-460.0,0.0001915,2]
[376053917,1753842639161,-500.01415062,0.0001915,2]
[376053918,1753842639171,-460.0,0.0001915,2]
[376053919,1753842639180,-460.0,0.0001915,2]
[376053920,1753842639190,-830.08,0.00019151,2]
[376053921,1753842639199,-3295.0,0.00019151,2]
[376053922,1753842639208,-647.91,0.00019151,2]
[376053923,1753842639218,-460.0,0.00019152,2]
[376053924,1753842639229,-1367.55,0.00019152,2]
[376053925,1753842639239,-460.0,0.00019153,2]
[376053926,1753842639248,-461.50127584,0.00019153,2]
[376053927,1753842639258,-1343.38,0.00019153,2]
[376053928,1753842639267,-763.2,0.00019153,2]
[376053929,1753842639276,-460.0,0.00019153,2]
[376053930,1753842639286,-460.0,0.00019153,2]
[376053931,1753842639295,-460.0,0.00019153,2]
[376053932,1753842639304,-582.95,0.00019153,2]
[376053933,1753842639314,-484.63941642,0.00019153,2]
[376053934,1753842639323,-558.22,0.00019153,2]
[376053935,1753842639333,-1320.03934054,0.00019153,2]
[376053936,1753842639350,-206.32065946,0.00019153,2]
[376053937,1753842639360,-663.55,0.00019153,2]
[376053938,1753842639369,-928.28,0.00019153,2]
[376053939,1753842639379,-500.0,0.00019164,2]
[376053940,1753842639388,-224.74911,0.00019178,2]
[376053941,1753842639398,-200.0,0.00019253,15]
[376053942,1753842639408,-200.0,0.00019253,15]
[376053943,1753842639418,-200.0,0.00019253,15]
[376053944,1753842639428,-200.0,0.00019253,15]
[376053945,1753842639440,-460.0,0.00019424,2]
[376053946,1753842639449,-523.09681226,0.00019424,2]
[376053947,1753842639460,-460.0,0.00019424,2]
[376053948,1753842639470,-460.0,0.00019424,2]
[376053949,1753842639479,-460.0,0.00019424,2]
[376053950,1753842639489,-215.50848745,0.00019424,2]
[376053951,1753842639498,-460.0,0.00019424,2]
[376053952,1753842639507,-1414.14,0.00019424,2]
[376053953,1753842639518,-460.0,0.00019424,2]
[376053954,1753842639529,-460.0,0.00019424,2]
[376053955,1753842639539,-460.0,0.00019424,2]
[376053956,1753842639548,-579.97,0.00019424,2]
[376053957,1753842639559,-967.51,0.00019424,2]
[376053958,1753842639570,-624.09,0.00019424,2]
[376053959,1753842639579,-220.93810011,0.00019424,2]
[376053960,1753842639595,-239.06189989,0.00019424,2]
[376053961,1753842639605,-460.0,0.00019424,2]
[376053962,1753842639614,-460.0,0.00019424,2]
[376053963,1753842639623,-460.0,0.00019424,2]
[376053964,1753842639633,-915.09,0.00019424,2]
[376053965,1753842639642,-460.0,0.00019424,2]
[376053966,1753842639652,-460.0,0.00019424,2]
[376053967,1753842639662,-158.02719055,0.00019424,2]
[376053968,1753842639672,-460.0,0.00019424,2]
[376053969,1753842639681,-460.0,0.00019424,2]
[376053970,1753842639691,-460.0,0.00019424,2]
[376053971,1753842639700,-460.0,0.00019424,2]
[376053972,1753842639709,-830.08,0.00019425,2]
[376053973,1753842639719,-3295.0,0.00019425,2]
[376053974,1753842639727,-647.91,0.00019425,2]
[376053975,1753842639739,-1367.55,0.00019426,2]
[376053976,1753842639748,-1343.38,0.00019427,2]
[376053977,1753842639759,-763.2,0.00019427,2]
[376053978,1753842639768,-443.70592098,0.00019427,2]
[376053979,1753842639777,-460.0,0.00019427,2]
[376053980,1753842639787,-460.0,0.00019427,2]
[376053981,1753842639796,-582.95,0.00019427,2]
[376053982,1753842639806,-558.22,0.00019427,2]
[376053983,1753842639815,-1526.36,0.00019427,2]
[376053984,1753842639825,-663.55,0.00019427,2]
[376053985,1753842639834,-928.28,0.00019427,2]
[376053986,1753842639844,-49380.92813525,0.0001944,2]
[376053988,1753842639853,-341.75916746,0.00019589,2]
[376053989,1753842639862,-500.0,0.00019676,2]
[376053990,1753842639871,-505.19863821,0.00019676,2]
[376053991,1753842639881,-500.77306425,0.00019676,2]
[376053992,1753842639890,-503.62923428,0.00019676,2]
[376053993,1753842639901,-460.0,0.00019698,2]
[376053994,1753842639910,-460.0,0.00019698,2]
[376053995,1753842639920,-460.0,0.00019698,2]
[376053996,1753842639933,-460.0,0.00019698,2]
[376053998,1753842639942,-460.0,0.00019698,2]
[376053999,1753842639951,-1414.14,0.00019698,2]
[376054001,1753842639962,-460.0,0.00019698,2]
[376054004,1753842639972,-460.0,0.00019698,2]
[376054006,1753842639981,-460.0,0.00019698,2]
[376054008,1753842639991,-579.97,0.00019698,2]
[376054010,1753842640000,-967.51,0.00019698,2]
[376054013,1753842640011,-624.09,0.00019698,2]
[376054016,1753842640020,-460.0,0.00019698,2]
[376054019,1753842640030,-460.0,0.00019698,2]
[376054021,1753842640039,-460.0,0.00019698,2]
[376054023,1753842640048,-460.0,0.00019698,2]
[376054025,1753842640057,-915.09,0.00019698,2]
[376054027,1753842640066,-460.0,0.00019698,2]
[376054029,1753842640075,-460.0,0.00019698,2]
[376054031,1753842640085,-460.0,0.00019698,2]
[376054033,1753842640095,-460.0,0.00019698,2]
[376054035,1753842640104,-460.0,0.00019698,2]
[376054037,1753842640113,-460.0,0.00019698,2]
[376054039,1753842640122,-830.08,0.00019699,2]
[376054041,1753842640132,-3295.0,0.00019699,2]
[376054043,1753842640141,-647.91,0.00019699,2]
[376054045,1753842640150,-1367.55,0.000197,2]
[376054047,1753842640159,-1343.38,0.00019701,2]
[376054049,1753842640169,-763.2,0.00019701,2]
[376054051,1753842640178,-460.0,0.00019701,2]
[376054053,1753842640187,-460.0,0.00019701,2]
[376054055,1753842640197,-582.95,0.00019701,2]
[376054057,1753842640205,-558.22,0.00019701,2]
[376054059,1753842640215,-1526.36,0.00019701,2]
[376054061,1753842640225,-663.55,0.00019701,2]
[376054063,1753842640236,-928.28,0.00019701,2]
[376054065,1753842640246,-501.46076756,0.00019719,2]
[376054067,1753842640255,-324.08529543,0.00019719,2]
[376054069,1753842640265,-501.19316058,0.00019719,2]
[376054071,1753842640274,-505.13672261,0.00019719,2]
[376054073,1753842640283,-506.85664384,0.0001976,2]
[376054075,1753842640291,-237.69986304,0.0001976,2]
[376054077,1753842640301,-503.24323331,0.0001976,2]
[376054078,1753842640310,-500.0,0.0001976,2]
[376054081,1753842640320,-501.62526512,0.0001976,2]
[376054082,1753842640329,-506.34173963,0.00019789,2]
[376054084,1753842640339,-500.0,0.00019841,2]
[376054086,1753842640348,-273.76394059,0.00019971,2]
[376054089,1753842640358,-460.0,0.00019972,2]
[376054091,1753842640368,-460.0,0.00019972,2]